[Event "Titled Tuesday Blitz November 14 Late 2023"]
[White "Boyer, Mahel"]
[Black "Jovic, Stanoje"]
[WhiteFideId "45102422"]
[BlackFideId "905020"]
[WhiteElo "2711"]
[BlackElo "2519"]
[Result "0-1"]
[Round "2"]
[TimeControl "180+1"]
[Date "2023.11.14"]
[WhiteClock "0:00:00"]
[BlackClock "0:00:09"]
[Board "56"]

1. e4 {[%clk 0:03:00]}  c6 {[%clk 0:02:59]} 2. c4 {[%clk 0:02:45]}  d5 {[%clk 0:02:59]} 3. cxd5 {[%clk 0:02:46]}  cxd5 {[%clk 0:02:59]} 4. exd5 {[%clk 0:02:46]}  Nf6 {[%clk 0:02:58]} 5. Nc3 {[%clk 0:02:45]}  Nxd5 {[%clk 0:02:57]} 6. Nf3 {[%clk 0:02:30]}  Nc6 {[%clk 0:02:55]} 7. g3 {[%clk 0:02:25]}  Bg4 {[%clk 0:02:52]} 8. Bg2 {[%clk 0:02:14]}  e6 {[%clk 0:02:52]} 9. O-O {[%clk 0:02:14]}  Be7 {[%clk 0:02:52]} 10. Qb3 {[%clk 0:02:15]}  Nb6 {[%clk 0:02:41]} 11. a4 {[%clk 0:02:11]}  O-O {[%clk 0:02:39]} 12. a5 {[%clk 0:02:10]}  Bxf3 {[%clk 0:02:35]} 13. Bxf3 {[%clk 0:02:10]}  Nd4 {[%clk 0:02:34]} 14. Qd1 {[%clk 0:02:10]}  Nxf3+ {[%clk 0:02:32]} 15. Qxf3 {[%clk 0:02:11]}  Nc4 {[%clk 0:02:30]} 16. a6 {[%clk 0:02:12]}  bxa6 {[%clk 0:02:26]} 17. Rxa6 {[%clk 0:02:11]}  Nxd2 {[%clk 0:02:20]} 18. Qb7 {[%clk 0:02:02]}  Nxf1 {[%clk 0:02:15]} 19. Kxf1 {[%clk 0:01:59]}  Bc5 {[%clk 0:02:05]} 20. Kg2 {[%clk 0:01:50]}  Bb6 {[%clk 0:01:50]} 21. Qf3 {[%clk 0:01:49]}  Rc8 {[%clk 0:01:47]} 22. Ra4 {[%clk 0:01:46]}  Qd7 {[%clk 0:01:43]} 23. Rh4 {[%clk 0:01:37]}  Qc6 {[%clk 0:01:33]} 24. Ne4 {[%clk 0:01:36]}  f5 {[%clk 0:01:10]} 25. Qh5 {[%clk 0:01:23]}  h6 {[%clk 0:00:59]} 26. Bxh6 {[%clk 0:01:11]}  Qb7 {[%clk 0:00:34]} 27. Be3 {[%clk 0:00:40]}  fxe4 {[%clk 0:00:26]} 28. Qh8+ {[%clk 0:00:26]}  Kf7 {[%clk 0:00:25]} 29. Rf4+ {[%clk 0:00:27]}  Kg6 {[%clk 0:00:13]} 30. Rg4+ {[%clk 0:00:12]}  Kf6 {[%clk 0:00:13]} 31. Rf4+ {[%clk 0:00:08]}  Ke5 {[%clk 0:00:12]} 32. Rxf8 {[%clk 0:00:02]}  Rxf8 {[%clk 0:00:11]} 33. Qxf8 {[%clk 0:00:02]}  Bxe3 {[%clk 0:00:11]} 34. fxe3 {[%clk 0:00:03]}  Qxb2+ {[%clk 0:00:11]} 35. Kh3 {[%clk 0:00:04]}  Qe2 {[%clk 0:00:10]} 36. Qxg7+ {[%clk 0:00:02]}  Kd5 {[%clk 0:00:09]} 37. Qd4+ {[%clk 0:00:03]}  Kc6 {[%clk 0:00:09]} 38. Qxe4+ {[%clk 0:00:03]}  Kd7 {[%clk 0:00:10]} 39. Qd4+ {[%clk 0:00:04]}  Kc6 {[%clk 0:00:09]} 40. Qa4+ {[%clk 0:00:03]}  Kd6 {[%clk 0:00:09]} 41. Qd4+ {[%clk 0:00:03]}  Kc6 {[%clk 0:00:09]} 42. Qe4+ {[%clk 0:00:02]}  Kd6 {[%clk 0:00:09]} 43. Qf4+ {[%clk 0:00:00]}  Kc6 {[%clk 0:00:09]} 0-1


[Site "https://www.chess.com"]

[Event "Titled Tuesday Blitz November 14 Late 2023"]
[White "Zeltsan, Joseph"]
[Black "Meduri, Aakaash"]
[WhiteFideId "30932980"]
[BlackFideId "2032252"]
[WhiteElo "2708"]
[BlackElo "2517"]
[Result "1-0"]
[Round "2"]
[TimeControl "180+1"]
[Date "2023.11.14"]
[WhiteClock "0:01:30"]
[BlackClock "0:00:38"]
[Board "58"]

1. e4 {[%clk 0:03:00]}  c5 {[%clk 0:02:59]} 2. Nf3 {[%clk 0:03:01]}  d6 {[%clk 0:03:00]} 3. d4 {[%clk 0:03:01]}  cxd4 {[%clk 0:03:00]} 4. Nxd4 {[%clk 0:03:02]}  Nf6 {[%clk 0:03:00]} 5. Nc3 {[%clk 0:03:03]}  Nc6 {[%clk 0:03:01]} 6. Bg5 {[%clk 0:03:03]}  e6 {[%clk 0:03:01]} 7. Qd2 {[%clk 0:03:04]}  a6 {[%clk 0:03:01]} 8. O-O-O {[%clk 0:03:04]}  Bd7 {[%clk 0:03:01]} 9. f4 {[%clk 0:03:04]}  Be7 {[%clk 0:03:02]} 10. Nf3 {[%clk 0:03:04]}  b5 {[%clk 0:02:48]} 11. Bxf6 {[%clk 0:03:04]}  gxf6 {[%clk 0:02:47]} 12. Kb1 {[%clk 0:03:04]}  Rc8 {[%clk 0:02:41]} 13. Ne2 {[%clk 0:03:02]}  b4 {[%clk 0:02:39]} 14. Ned4 {[%clk 0:02:46]}  a5 {[%clk 0:02:36]} 15. Nb5 {[%clk 0:02:45]}  a4 {[%clk 0:02:18]} 16. Nxd6+ {[%clk 0:02:40]}  Bxd6 {[%clk 0:02:18]} 17. Qxd6 {[%clk 0:02:40]}  Qe7 {[%clk 0:02:19]} 18. Bb5 {[%clk 0:02:38]}  a3 {[%clk 0:02:15]} 19. Rd2 {[%clk 0:02:25]}  Qxd6 {[%clk 0:02:00]} 20. Rxd6 {[%clk 0:02:24]}  Ke7 {[%clk 0:02:01]} 21. Rhd1 {[%clk 0:02:24]}  Rhd8 {[%clk 0:02:00]} 22. Nd4 {[%clk 0:01:53]}  Nxd4 {[%clk 0:01:34]} 23. Rxd7+ {[%clk 0:01:47]}  Rxd7 {[%clk 0:01:28]} 24. Bxd7 {[%clk 0:01:48]}  Rxc2 {[%clk 0:01:23]} 25. bxa3 {[%clk 0:01:48]}  e5 {[%clk 0:01:20]} 26. Rxd4 {[%clk 0:01:41]}  Rxg2 {[%clk 0:01:15]} 27. fxe5 {[%clk 0:01:41]}  fxe5 {[%clk 0:01:15]} 28. Rd3 {[%clk 0:01:35]}  bxa3 {[%clk 0:01:12]} 29. Bf5 {[%clk 0:01:35]}  Rxh2 {[%clk 0:01:12]} 30. Rxa3 {[%clk 0:01:35]}  h5 {[%clk 0:01:12]} 31. Rh3 {[%clk 0:01:35]}  Rd2 {[%clk 0:01:03]} 32. Rxh5 {[%clk 0:01:33]}  Kf6 {[%clk 0:01:04]} 33. Rh3 {[%clk 0:01:29]}  Kg5 {[%clk 0:01:02]} 34. a4 {[%clk 0:01:30]}  f6 {[%clk 0:00:54]} 35. a5 {[%clk 0:01:29]}  Rd6 {[%clk 0:00:55]} 36. Ra3 {[%clk 0:01:29]}  Ra6 {[%clk 0:00:55]} 37. Kc2 {[%clk 0:01:30]}  Kf4 {[%clk 0:00:55]} 38. Kb3 {[%clk 0:01:30]}  Ke3 {[%clk 0:00:53]} 39. Kb4+ {[%clk 0:01:29]}  Kd4 {[%clk 0:00:54]} 40. Kb5 {[%clk 0:01:29]}  Ra8 {[%clk 0:00:54]} 41. a6 {[%clk 0:01:29]}  Rb8+ {[%clk 0:00:55]} 42. Kc6 {[%clk 0:01:30]}  Ra8 {[%clk 0:00:55]} 43. Kb7 {[%clk 0:01:30]}  Rg8 {[%clk 0:00:52]} 44. a7 {[%clk 0:01:30]}  Rg7+ {[%clk 0:00:38]} 45. Kc6 {[%clk 0:01:30]} 1-0


[Site "https://www.chess.com"]

[Event "Titled Tuesday Blitz November 14 Late 2023"]
[White "Rangel, Daniel"]
[Black "Rorrer, Grayson"]
[WhiteFideId "2124475"]
[BlackFideId "30944996"]
[WhiteElo "2517"]
[BlackElo "2705"]
[Result "0-1"]
[Round "2"]
[TimeControl "180+1"]
[Date "2023.11.14"]
[WhiteClock "0:00:00"]
[BlackClock "0:00:31"]
[Board "59"]

1. c4 {[%clk 0:02:59]}  e5 {[%clk 0:02:59]} 2. Nc3 {[%clk 0:02:59]}  Bb4 {[%clk 0:02:59]} 3. g3 {[%clk 0:02:57]}  Bxc3 {[%clk 0:02:58]} 4. dxc3 {[%clk 0:02:58]}  d6 {[%clk 0:02:57]} 5. Bg2 {[%clk 0:02:59]}  Nf6 {[%clk 0:02:55]} 6. e4 {[%clk 0:02:58]}  O-O {[%clk 0:02:54]} 7. Nf3 {[%clk 0:02:56]}  Nxe4 {[%clk 0:02:49]} 8. O-O {[%clk 0:02:24]}  Nf6 {[%clk 0:02:48]} 9. c5 {[%clk 0:02:23]}  e4 {[%clk 0:02:43]} 10. Ng5 {[%clk 0:02:18]}  d5 {[%clk 0:02:43]} 11. Be3 {[%clk 0:02:01]}  Ng4 {[%clk 0:02:35]} 12. Bf4 {[%clk 0:01:51]}  Nc6 {[%clk 0:02:19]} 13. Nh3 {[%clk 0:01:43]}  Be6 {[%clk 0:02:05]} 14. Ng5 {[%clk 0:01:41]}  Nf6 {[%clk 0:02:00]} 15. Nxe6 {[%clk 0:01:29]}  fxe6 {[%clk 0:02:01]} 16. b4 {[%clk 0:01:27]}  Qe7 {[%clk 0:01:51]} 17. Bg5 {[%clk 0:01:19]}  Rad8 {[%clk 0:01:48]} 18. Qe2 {[%clk 0:01:11]}  h6 {[%clk 0:01:45]} 19. Be3 {[%clk 0:01:11]}  e5 {[%clk 0:01:35]} 20. Rad1 {[%clk 0:01:01]}  Qe6 {[%clk 0:01:28]} 21. Bc1 {[%clk 0:00:50]}  d4 {[%clk 0:01:05]} 22. b5 {[%clk 0:00:45]}  d3 {[%clk 0:01:00]} 23. Qe3 {[%clk 0:00:44]}  Na5 {[%clk 0:01:00]} 24. Bxe4 {[%clk 0:00:38]}  Nc4 {[%clk 0:00:58]} 25. Qf3 {[%clk 0:00:34]}  d2 {[%clk 0:00:53]} 26. Bf5 {[%clk 0:00:26]}  Qf7 {[%clk 0:00:52]} 27. Qxb7 {[%clk 0:00:13]}  dxc1=Q {[%clk 0:00:52]} 28. Rxc1 {[%clk 0:00:12]}  Nd5 {[%clk 0:00:40]} 29. Be4 {[%clk 0:00:07]}  Nd2 {[%clk 0:00:39]} 30. Bxd5 {[%clk 0:00:06]}  Rxd5 {[%clk 0:00:40]} 31. Rfd1 {[%clk 0:00:05]}  Qxf2+ {[%clk 0:00:40]} 32. Kh1 {[%clk 0:00:06]}  Qf3+ {[%clk 0:00:34]} 33. Kg1 {[%clk 0:00:03]}  Kh8 {[%clk 0:00:32]} 34. Rxd2 {[%clk 0:00:02]}  Rxd2 {[%clk 0:00:27]} 35. Qxf3 {[%clk 0:00:03]}  Rxf3 {[%clk 0:00:28]} 36. c4 {[%clk 0:00:03]}  Rfd3 {[%clk 0:00:26]} 37. Re1 {[%clk 0:00:01]}  Rd1 {[%clk 0:00:26]} 38. Rxd1 {[%clk 0:00:01]}  Rxd1+ {[%clk 0:00:27]} 39. Kf2 {[%clk 0:00:02]}  Rc1 {[%clk 0:00:28]} 40. Ke3 {[%clk 0:00:02]}  Rxc4 {[%clk 0:00:28]} 41. c6 {[%clk 0:00:03]}  Rc5 {[%clk 0:00:28]} 42. Ke4 {[%clk 0:00:04]}  Rxb5 {[%clk 0:00:28]} 43. Kf5 {[%clk 0:00:05]}  Rc5 {[%clk 0:00:28]} 44. Kg6 {[%clk 0:00:06]}  Rxc6+ {[%clk 0:00:28]} 45. Kf7 {[%clk 0:00:05]}  Ra6 {[%clk 0:00:29]} 46. Ke7 {[%clk 0:00:06]}  Rxa2 {[%clk 0:00:30]} 47. g4 {[%clk 0:00:05]}  Rxh2 {[%clk 0:00:31]} 48. g5 {[%clk 0:00:05]}  hxg5 {[%clk 0:00:32]} 49. Kf7 {[%clk 0:00:05]}  g4 {[%clk 0:00:33]} 50. Kg6 {[%clk 0:00:06]}  g3 {[%clk 0:00:34]} 51. Kf7 {[%clk 0:00:07]}  g2 {[%clk 0:00:34]} 52. Ke6 {[%clk 0:00:07]}  g1=Q {[%clk 0:00:35]} 53. Kd7 {[%clk 0:00:08]}  Qd4+ {[%clk 0:00:35]} 54. Ke8 {[%clk 0:00:00]}  Qd6 {[%clk 0:00:31]} 0-1


[Site "https://www.chess.com"]

[Event "Titled Tuesday Blitz November 14 Late 2023"]
[White "Shuvalova, Polina"]
[Black "Weimarraner"]
[WhiteFideId "24171760"]
[WhiteElo "2700"]
[BlackElo "2516"]
[Result "0-1"]
[Round "2"]
[TimeControl "180+1"]
[Date "2023.11.14"]
[WhiteClock "0:00:02"]
[BlackClock "0:00:54"]
[Board "60"]

1. Nf3 {[%clk 0:03:00]}  Nf6 {[%clk 0:02:59]} 2. c4 {[%clk 0:02:58]}  g6 {[%clk 0:02:59]} 3. Nc3 {[%clk 0:02:58]}  Bg7 {[%clk 0:03:00]} 4. g3 {[%clk 0:02:58]}  O-O {[%clk 0:02:59]} 5. Bg2 {[%clk 0:02:58]}  c5 {[%clk 0:02:58]} 6. O-O {[%clk 0:02:58]}  Nc6 {[%clk 0:02:59]} 7. b3 {[%clk 0:02:59]}  d5 {[%clk 0:02:58]} 8. cxd5 {[%clk 0:02:58]}  Nxd5 {[%clk 0:02:59]} 9. Bb2 {[%clk 0:02:59]}  Nc7 {[%clk 0:02:55]} 10. Rc1 {[%clk 0:02:58]}  b6 {[%clk 0:02:53]} 11. Qc2 {[%clk 0:02:39]}  Ba6 {[%clk 0:02:50]} 12. Rfd1 {[%clk 0:02:38]}  Rc8 {[%clk 0:02:45]} 13. d3 {[%clk 0:02:32]}  e6 {[%clk 0:02:33]} 14. a3 {[%clk 0:02:31]}  Qe7 {[%clk 0:02:32]} 15. Ne4 {[%clk 0:02:26]}  Bxb2 {[%clk 0:02:24]} 16. Qxb2 {[%clk 0:02:26]}  f5 {[%clk 0:02:22]} 17. Ned2 {[%clk 0:02:21]}  Rfd8 {[%clk 0:02:11]} 18. b4 {[%clk 0:02:17]}  Nd4 {[%clk 0:01:47]} 19. Nxd4 {[%clk 0:02:14]}  cxd4 {[%clk 0:01:48]} 20. Nf3 {[%clk 0:02:10]}  e5 {[%clk 0:01:46]} 21. h4 {[%clk 0:02:05]}  Bb7 {[%clk 0:01:43]} 22. Rc4 {[%clk 0:01:21]}  Nd5 {[%clk 0:01:41]} 23. Rdc1 {[%clk 0:01:21]}  Nc3 {[%clk 0:01:39]} 24. Kh2 {[%clk 0:01:07]}  Kg7 {[%clk 0:01:26]} 25. Rc2 {[%clk 0:01:04]}  Bxf3 {[%clk 0:01:23]} 26. Bxf3 {[%clk 0:00:59]}  b5 {[%clk 0:01:21]} 27. Rxc8 {[%clk 0:00:56]}  Rxc8 {[%clk 0:01:22]} 28. Bg2 {[%clk 0:00:54]}  Rc7 {[%clk 0:01:20]} 29. e3 {[%clk 0:00:52]}  Qd6 {[%clk 0:01:19]} 30. Qb3 {[%clk 0:00:50]}  f4 {[%clk 0:01:08]} 31. exf4 {[%clk 0:00:43]}  exf4 {[%clk 0:01:08]} 32. Rc1 {[%clk 0:00:36]}  fxg3+ {[%clk 0:01:00]} 33. fxg3 {[%clk 0:00:36]}  Ne2 {[%clk 0:01:00]} 34. Rxc7+ {[%clk 0:00:23]}  Qxc7 {[%clk 0:00:59]} 35. Kh1 {[%clk 0:00:09]}  Qxg3 {[%clk 0:00:55]} 36. Qe6 {[%clk 0:00:03]}  Qxg2+ {[%clk 0:00:52]} 37. Kxg2 {[%clk 0:00:03]}  Nf4+ {[%clk 0:00:53]} 38. Kf3 {[%clk 0:00:03]}  Nxe6 {[%clk 0:00:54]} 39. Ke4 {[%clk 0:00:04]}  Kf6 {[%clk 0:00:54]} 40. Kd5 {[%clk 0:00:02]}  h6 {[%clk 0:00:54]} 0-1


[Site "https://www.chess.com"]

[Event "Titled Tuesday Blitz November 14 Late 2023"]
[White "Hasangatin, Ramil"]
[Black "Richter, Paul"]
[WhiteFideId "4122160"]
[BlackFideId "2046350"]
[WhiteElo "2692"]
[BlackElo "2515"]
[Result "1-0"]
[Round "2"]
[TimeControl "180+1"]
[Date "2023.11.14"]
[WhiteClock "0:00:12"]
[BlackClock "0:00:00"]
[Board "61"]

1. e4 {[%clk 0:03:00]}  c5 {[%clk 0:02:58]} 2. Nf3 {[%clk 0:03:01]}  d6 {[%clk 0:02:58]} 3. d4 {[%clk 0:02:59]}  cxd4 {[%clk 0:02:59]} 4. Qxd4 {[%clk 0:03:00]}  Nc6 {[%clk 0:02:59]} 5. Bb5 {[%clk 0:03:00]}  Bd7 {[%clk 0:02:59]} 6. Bxc6 {[%clk 0:03:00]}  bxc6 {[%clk 0:02:59]} 7. c4 {[%clk 0:02:59]}  e5 {[%clk 0:02:59]} 8. Qd3 {[%clk 0:02:59]}  Qc7 {[%clk 0:03:00]} 9. Nc3 {[%clk 0:02:59]}  Be7 {[%clk 0:03:00]} 10. O-O {[%clk 0:02:58]}  Nf6 {[%clk 0:02:59]} 11. Bg5 {[%clk 0:02:57]}  Rd8 {[%clk 0:03:00]} 12. b4 {[%clk 0:02:49]}  O-O {[%clk 0:02:53]} 13. b5 {[%clk 0:02:49]}  cxb5 {[%clk 0:02:36]} 14. cxb5 {[%clk 0:02:46]}  Be6 {[%clk 0:02:31]} 15. Bxf6 {[%clk 0:02:45]}  Bxf6 {[%clk 0:02:29]} 16. Nd5 {[%clk 0:02:36]}  Qb7 {[%clk 0:02:17]} 17. Rfd1 {[%clk 0:02:26]}  Rd7 {[%clk 0:02:00]} 18. Rac1 {[%clk 0:02:21]}  Rc8 {[%clk 0:01:41]} 19. Rxc8+ {[%clk 0:02:14]}  Qxc8 {[%clk 0:01:41]} 20. h3 {[%clk 0:02:12]}  Bd8 {[%clk 0:01:39]} 21. Qc3 {[%clk 0:02:00]}  Qb7 {[%clk 0:01:28]} 22. Qc6 {[%clk 0:01:59]}  h6 {[%clk 0:01:11]} 23. a4 {[%clk 0:01:58]}  Qb8 {[%clk 0:01:02]} 24. Nd2 {[%clk 0:01:52]}  Bb6 {[%clk 0:00:53]} 25. Nb3 {[%clk 0:01:46]}  Rd8 {[%clk 0:00:23]} 26. a5 {[%clk 0:01:40]}  Bd7 {[%clk 0:00:22]} 27. Qc3 {[%clk 0:01:28]}  Bd4 {[%clk 0:00:18]} 28. Nxd4 {[%clk 0:01:27]}  exd4 {[%clk 0:00:19]} 29. Qxd4 {[%clk 0:01:20]}  Bxb5 {[%clk 0:00:18]} 30. Ne7+ {[%clk 0:01:11]}  Kh7 {[%clk 0:00:18]} 31. Nf5 {[%clk 0:01:11]}  f6 {[%clk 0:00:19]} 32. Nxd6 {[%clk 0:01:10]}  Bc6 {[%clk 0:00:16]} 33. e5 {[%clk 0:01:08]}  fxe5 {[%clk 0:00:13]} 34. Qxe5 {[%clk 0:01:09]}  Qc7 {[%clk 0:00:11]} 35. Qf5+ {[%clk 0:00:54]}  Kg8 {[%clk 0:00:10]} 36. Qe6+ {[%clk 0:00:54]}  Kh7 {[%clk 0:00:09]} 37. Rd4 {[%clk 0:00:49]}  Ba8 {[%clk 0:00:09]} 38. Kh2 {[%clk 0:00:43]}  a6 {[%clk 0:00:07]} 39. f3 {[%clk 0:00:42]}  Rd7 {[%clk 0:00:06]} 40. Qf5+ {[%clk 0:00:38]}  Kg8 {[%clk 0:00:06]} 41. Qe5 {[%clk 0:00:34]}  Rd8 {[%clk 0:00:06]} 42. h4 {[%clk 0:00:31]}  Kh7 {[%clk 0:00:04]} 43. h5 {[%clk 0:00:31]}  Kg8 {[%clk 0:00:05]} 44. Rd2 {[%clk 0:00:20]}  Kh7 {[%clk 0:00:04]} 45. Qg3 {[%clk 0:00:20]}  Kg8 {[%clk 0:00:04]} 46. Qe5 {[%clk 0:00:13]}  Kh7 {[%clk 0:00:04]} 47. f4 {[%clk 0:00:13]}  Kg8 {[%clk 0:00:02]} 48. f5 {[%clk 0:00:14]}  Qc6 {[%clk 0:00:00]} 49. f6 {[%clk 0:00:12]} 1-0


[Site "https://www.chess.com"]

[Event "Titled Tuesday Blitz November 14 Late 2023"]
[White "Zakaryan, David"]
[Black "Ponce Cano, Adrian"]
[WhiteFideId "24101923"]
[BlackFideId "22296913"]
[WhiteElo "2687"]
[BlackElo "2481"]
[Result "0-1"]
[Round "2"]
[TimeControl "180+1"]
[Date "2023.11.14"]
[WhiteClock "0:00:00"]
[BlackClock "0:00:11"]
[Board "62"]

1. d4 {[%clk 0:03:00]}  d5 {[%clk 0:02:57]} 2. c4 {[%clk 0:03:00]}  c6 {[%clk 0:02:56]} 3. Nc3 {[%clk 0:03:00]}  Nf6 {[%clk 0:02:57]} 4. Nf3 {[%clk 0:02:58]}  e6 {[%clk 0:02:53]} 5. Bg5 {[%clk 0:02:57]}  h6 {[%clk 0:02:52]} 6. Bxf6 {[%clk 0:02:57]}  Qxf6 {[%clk 0:02:52]} 7. Qb3 {[%clk 0:02:58]}  Nd7 {[%clk 0:02:47]} 8. e4 {[%clk 0:02:55]}  dxc4 {[%clk 0:02:41]} 9. Bxc4 {[%clk 0:02:54]}  b5 {[%clk 0:02:42]} 10. Be2 {[%clk 0:02:45]}  Be7 {[%clk 0:02:38]} 11. O-O {[%clk 0:02:44]}  O-O {[%clk 0:02:37]} 12. a4 {[%clk 0:02:39]}  b4 {[%clk 0:02:36]} 13. Nd1 {[%clk 0:02:37]}  e5 {[%clk 0:02:34]} 14. dxe5 {[%clk 0:02:32]}  Nxe5 {[%clk 0:02:34]} 15. Nxe5 {[%clk 0:01:38]}  Qxe5 {[%clk 0:02:34]} 16. Qc2 {[%clk 0:01:36]}  Bb7 {[%clk 0:02:27]} 17. Ne3 {[%clk 0:01:26]}  c5 {[%clk 0:02:23]} 18. Bf3 {[%clk 0:01:26]}  Rfd8 {[%clk 0:02:12]} 19. Rad1 {[%clk 0:01:25]}  Bd6 {[%clk 0:02:01]} 20. g3 {[%clk 0:01:23]}  Bc7 {[%clk 0:02:00]} 21. Bg2 {[%clk 0:01:20]}  Rac8 {[%clk 0:01:59]} 22. b3 {[%clk 0:01:19]}  Re8 {[%clk 0:01:54]} 23. Nc4 {[%clk 0:01:14]}  Qe7 {[%clk 0:01:46]} 24. Rfe1 {[%clk 0:01:14]}  Rcd8 {[%clk 0:01:42]} 25. e5 {[%clk 0:01:09]}  Bxg2 {[%clk 0:01:42]} 26. Kxg2 {[%clk 0:01:09]}  Rxd1 {[%clk 0:01:42]} 27. Qxd1 {[%clk 0:01:10]}  Rd8 {[%clk 0:01:38]} 28. Qf3 {[%clk 0:01:11]}  Qe6 {[%clk 0:01:29]} 29. Qb7 {[%clk 0:01:05]}  Qd5+ {[%clk 0:01:19]} 30. Qxd5 {[%clk 0:01:04]}  Rxd5 {[%clk 0:01:20]} 31. Kf3 {[%clk 0:01:03]}  Kf8 {[%clk 0:01:15]} 32. h4 {[%clk 0:00:57]}  Ke7 {[%clk 0:01:15]} 33. h5 {[%clk 0:00:56]}  Ke6 {[%clk 0:01:15]} 34. Kf4 {[%clk 0:00:44]}  Rd4+ {[%clk 0:01:13]} 35. Re4 {[%clk 0:00:42]}  Rd3 {[%clk 0:01:13]} 36. Re3 {[%clk 0:00:41]}  Rxe3 {[%clk 0:01:00]} 37. Kxe3 {[%clk 0:00:42]}  Bxe5 {[%clk 0:01:00]} 38. f4 {[%clk 0:00:27]}  Bc7 {[%clk 0:00:52]} 39. Ke4 {[%clk 0:00:28]}  g6 {[%clk 0:00:34]} 40. hxg6 {[%clk 0:00:19]}  fxg6 {[%clk 0:00:35]} 41. Ne3 {[%clk 0:00:19]}  h5 {[%clk 0:00:26]} 42. Nc4 {[%clk 0:00:20]}  g5 {[%clk 0:00:23]} 43. Ne3 {[%clk 0:00:17]}  gxf4 {[%clk 0:00:22]} 44. gxf4 {[%clk 0:00:18]}  h4 {[%clk 0:00:22]} 45. Ng4 {[%clk 0:00:17]}  a5 {[%clk 0:00:20]} 46. Ne3 {[%clk 0:00:17]}  Bd8 {[%clk 0:00:18]} 47. Ng4 {[%clk 0:00:18]}  Bf6 {[%clk 0:00:17]} 48. Nf2 {[%clk 0:00:18]}  Bd4 {[%clk 0:00:17]} 49. Nh3 {[%clk 0:00:18]}  Kf6 {[%clk 0:00:17]} 50. f5 {[%clk 0:00:16]}  Be5 {[%clk 0:00:13]} 51. Nf2 {[%clk 0:00:16]}  Bg3 {[%clk 0:00:13]} 52. Nh3 {[%clk 0:00:16]}  Be1 {[%clk 0:00:12]} 53. Ng1 {[%clk 0:00:16]}  c4 {[%clk 0:00:10]} 54. bxc4 {[%clk 0:00:16]}  b3 {[%clk 0:00:11]} 55. Kd3 {[%clk 0:00:17]}  b2 {[%clk 0:00:09]} 56. c5 {[%clk 0:00:18]}  b1=Q+ {[%clk 0:00:09]} 57. Kc4 {[%clk 0:00:03]}  Qa1 {[%clk 0:00:10]} 58. Kb5 {[%clk 0:00:00]}  Qc3 {[%clk 0:00:11]} 0-1


[Site "https://www.chess.com"]

[Event "Titled Tuesday Blitz November 14 Late 2023"]
[White "Kustar, Sandor"]
[Black "Solon, Nathan"]
[WhiteFideId "702900"]
[BlackFideId "2017229"]
[WhiteElo "2477"]
[BlackElo "2675"]
[Result "0-1"]
[Round "2"]
[TimeControl "180+1"]
[Date "2023.11.14"]
[WhiteClock "0:00:00"]
[BlackClock "0:00:06"]
[Board "64"]

1. Nf3 {[%clk 0:03:00]}  d5 {[%clk 0:02:58]} 2. c4 {[%clk 0:03:00]}  c6 {[%clk 0:02:58]} 3. Qc2 {[%clk 0:02:59]}  Nf6 {[%clk 0:02:57]} 4. g3 {[%clk 0:02:59]}  e6 {[%clk 0:02:52]} 5. Bg2 {[%clk 0:03:00]}  Nbd7 {[%clk 0:02:51]} 6. d4 {[%clk 0:02:55]}  Be7 {[%clk 0:02:48]} 7. Nbd2 {[%clk 0:02:55]}  O-O {[%clk 0:02:47]} 8. O-O {[%clk 0:02:56]}  b6 {[%clk 0:02:48]} 9. Rd1 {[%clk 0:02:55]}  Bb7 {[%clk 0:02:48]} 10. e4 {[%clk 0:02:56]}  Rc8 {[%clk 0:02:40]} 11. b3 {[%clk 0:02:56]}  c5 {[%clk 0:02:32]} 12. exd5 {[%clk 0:02:35]}  exd5 {[%clk 0:02:30]} 13. Bb2 {[%clk 0:02:30]}  cxd4 {[%clk 0:02:17]} 14. Nxd4 {[%clk 0:02:27]}  Qc7 {[%clk 0:02:04]} 15. Nf5 {[%clk 0:01:58]}  Bc5 {[%clk 0:02:02]} 16. Rac1 {[%clk 0:01:34]}  Rfe8 {[%clk 0:01:52]} 17. Nf3 {[%clk 0:01:17]}  dxc4 {[%clk 0:01:39]} 18. Qxc4 {[%clk 0:01:07]}  Be4 {[%clk 0:01:26]} 19. Ne3 {[%clk 0:00:59]}  Qb7 {[%clk 0:01:21]} 20. Ng5 {[%clk 0:00:53]}  Bxg2 {[%clk 0:01:02]} 21. Qxf7+ {[%clk 0:00:53]}  Kh8 {[%clk 0:01:02]} 22. Nxg2 {[%clk 0:00:38]}  Rf8 {[%clk 0:00:52]} 23. Qe6 {[%clk 0:00:34]}  Bxf2+ {[%clk 0:00:26]} 24. Kh1 {[%clk 0:00:31]}  Nc5 {[%clk 0:00:21]} 25. Qf5 {[%clk 0:00:25]}  h6 {[%clk 0:00:11]} 26. Bxf6 {[%clk 0:00:14]}  hxg5 {[%clk 0:00:11]} 27. Qxf2 {[%clk 0:00:08]}  Rxf6 {[%clk 0:00:10]} 28. Qe3 {[%clk 0:00:06]}  Rcf8 {[%clk 0:00:07]} 29. Kg1 {[%clk 0:00:00]}  Ne4 {[%clk 0:00:06]} 0-1


[Site "https://www.chess.com"]

[Event "Titled Tuesday Blitz November 14 Late 2023"]
[White "PoXerStar"]
[Black "Bjelobrk, Igor"]
[BlackFideId "4300726"]
[WhiteElo "2447"]
[BlackElo "2672"]
[Result "0-1"]
[Round "2"]
[TimeControl "180+1"]
[Date "2023.11.14"]
[WhiteClock "0:00:00"]
[BlackClock "0:00:45"]
[Board "65"]

1. d4 {[%clk 0:02:59]}  e6 {[%clk 0:02:58]} 2. c4 {[%clk 0:02:59]}  b6 {[%clk 0:02:58]} 3. f3 {[%clk 0:02:59]}  Bb7 {[%clk 0:02:41]} 4. e4 {[%clk 0:02:54]}  d6 {[%clk 0:02:26]} 5. Nc3 {[%clk 0:02:53]}  Nd7 {[%clk 0:02:25]} 6. Bd3 {[%clk 0:02:36]}  g6 {[%clk 0:02:18]} 7. Nge2 {[%clk 0:02:36]}  Bg7 {[%clk 0:02:18]} 8. Be3 {[%clk 0:02:37]}  Ne7 {[%clk 0:02:18]} 9. Qd2 {[%clk 0:02:37]}  h5 {[%clk 0:02:18]} 10. h4 {[%clk 0:02:25]}  a6 {[%clk 0:02:17]} 11. O-O-O {[%clk 0:02:20]}  c5 {[%clk 0:02:12]} 12. Kb1 {[%clk 0:02:13]}  Qc7 {[%clk 0:02:07]} 13. d5 {[%clk 0:01:57]}  exd5 {[%clk 0:02:05]} 14. exd5 {[%clk 0:01:55]}  Ne5 {[%clk 0:02:04]} 15. Ng3 {[%clk 0:01:52]}  Bc8 {[%clk 0:01:51]} 16. Rhe1 {[%clk 0:01:48]}  O-O {[%clk 0:01:48]} 17. Bf1 {[%clk 0:01:46]}  Nf5 {[%clk 0:01:45]} 18. Nxf5 {[%clk 0:01:46]}  Bxf5+ {[%clk 0:01:46]} 19. Ka1 {[%clk 0:01:46]}  b5 {[%clk 0:01:46]} 20. Bh6 {[%clk 0:01:02]}  bxc4 {[%clk 0:01:42]} 21. Bxg7 {[%clk 0:01:01]}  Kxg7 {[%clk 0:01:42]} 22. Rxe5 {[%clk 0:00:54]}  dxe5 {[%clk 0:01:40]} 23. Bxc4 {[%clk 0:00:42]}  Rfd8 {[%clk 0:01:36]} 24. d6 {[%clk 0:00:37]}  Qb6 {[%clk 0:01:35]} 25. Qd5 {[%clk 0:00:35]}  Rd7 {[%clk 0:01:26]} 26. Qxe5+ {[%clk 0:00:35]}  Kh7 {[%clk 0:01:27]} 27. g4 {[%clk 0:00:27]}  hxg4 {[%clk 0:01:22]} 28. h5 {[%clk 0:00:28]}  Rb8 {[%clk 0:00:53]} 29. hxg6+ {[%clk 0:00:27]}  Kxg6 {[%clk 0:00:54]} 30. Nd5 {[%clk 0:00:14]}  Qxb2+ {[%clk 0:00:50]} 31. Qxb2 {[%clk 0:00:13]}  Rxb2 {[%clk 0:00:51]} 32. Kxb2 {[%clk 0:00:14]}  gxf3 {[%clk 0:00:49]} 33. Ne7+ {[%clk 0:00:03]}  Kf6 {[%clk 0:00:48]} 34. Nxf5 {[%clk 0:00:03]}  Kxf5 {[%clk 0:00:48]} 35. Bxa6 {[%clk 0:00:04]}  Ke5 {[%clk 0:00:46]} 36. Bb7 {[%clk 0:00:02]}  f2 {[%clk 0:00:46]} 37. Rf1 {[%clk 0:00:03]}  Rxb7+ {[%clk 0:00:45]} 38. Kc3 {[%clk 0:00:02]}  Kxd6 {[%clk 0:00:45]} 39. Rxf2 {[%clk 0:00:00]}  Ra7 {[%clk 0:00:45]} 0-1


[Site "https://www.chess.com"]